fUSD/lending_fUSD_20240527
["ID","MTS","AMOUNT","RATE_DAILY","PERIOD"]
[328073522,1716835855563,-500.0,0.00030136,6]
[328073523,1716835855573,-500.0,0.00030136,6]
[328073524,1716835855582,-500.0,0.00030136,6]
[328073525,1716835855591,-522.5,0.00030136,6]
[328073526,1716835855600,-500.0,0.00030136,6]
[328073527,1716835855611,-507.94970902,0.00030136,6]
[328073528,1716835855620,-500.0,0.00030136,6]
[328073529,1716835855630,-500.0,0.00030136,6]
[328073530,1716835855639,-522.5,0.00030136,6]
[328073531,1716835855648,-180.50131205,0.00030136,6]
[328073532,1716835855658,-500.0,0.00030136,6]
[328073533,1716835855667,-522.5,0.00030136,6]
[328073534,1716835855676,-3326.22,0.00030136,6]
[328073535,1716835855686,-500.0,0.00030136,6]
[328073536,1716835855696,-3326.22,0.00030136,6]
[328073537,1716835855706,-500.0,0.00030136,6]
[328073538,1716835855715,-634.78,0.00030136,6]
[328073539,1716835855725,-3326.22,0.00030136,6]
[328073540,1716835855734,-355.73415833,0.00030136,6]
[328073541,1716835855768,-144.26584167,0.00030136,6]
[328073542,1716835855777,-506.70244614,0.00030136,6]
[328073543,1716835856002,-274.64908023,0.00030135,4]
[328073544,1716835856011,-180.277158,0.00030135,4]
[328073545,1716835856020,-337.68755386,0.00030136,6]
[328073546,1716835856030,-634.78,0.00030136,6]
[328073547,1716835856040,-1019.17655995,0.00030136,6]
[328073548,1716835856052,-2307.04344005,0.00030136,6]
[328073549,1716835856061,-500.0,0.00030136,6]
[328073550,1716835856075,-3326.22,0.00030136,6]
[328073551,1716835856084,-500.0,0.00030136,6]
[328073552,1716835856094,-368.73655995,0.00030136,6]
[328073553,1716835856105,-266.04344005,0.00030136,6]
[328073554,1716835856115,-634.78,0.00030136,6]
[328073555,1716835856125,-500.0,0.00030136,6]
[328073556,1716835856134,-500.0,0.00030136,6]
[328073557,1716835856145,-500.0,0.00030136,6]
[328073558,1716835856155,-500.0,0.00030136,6]
[328073559,1716835856165,-500.0,0.00030136,6]
[328073560,1716835856174,-472.23190032,0.00030136,6]
[328073561,1716835856189,-27.76809968,0.00030136,6]
[328073562,1716835856198,-500.0,0.00030136,6]
[328073563,1716835856208,-168.56190032,0.00030136,6]
[328073564,1716835856226,-2865.1732305,0.00030135,2]
[328073565,1716835856235,-675.82809968,0.00030136,6]
[328073566,1716835856245,-500.0,0.00030136,6]
[328073567,1716835856254,-844.39,0.00030136,6]
[328073568,1716835856265,-500.0,0.00030136,6]
[328073569,1716835856274,-844.39,0.00030136,6]
[328073570,1716835856283,-500.0,0.00030136,6]
[328073571,1716835856292,-822.47,0.00030136,6]
[328073572,1716835856301,-500.0,0.00030136,6]
[328073573,1716835856310,-822.47,0.00030136,6]
[328073574,1716835856319,-515.16250279,0.00030136,6]
[328073575,1716835856328,-500.0,0.00030136,6]
[328073576,1716835856337,-822.47,0.00030136,6]
[328073577,1716835856347,-500.0,0.00030136,6]
[328073578,1716835856355,-500.0,0.00030136,6]
[328073579,1716835856364,-500.0,0.00030136,6]
[328073580,1716835856374,-500.0,0.00030136,6]
[328073581,1716835856383,-1630.25,0.00030136,6]
[328073582,1716835856392,-500.0,0.00030136,6]
[328073583,1716835856401,-1630.25,0.00030136,6]
[328073584,1716835856410,-500.0,0.00030136,6]
[328073585,1716835856418,-1630.25,0.00030136,6]
[328073586,1716835856427,-500.0,0.00030136,6]
[328073587,1716835856436,-1630.25,0.00030136,6]
[328073588,1716835856445,-153.211788,0.00030136,7]
[328073589,1716835856454,-500.0,0.00030136,6]
[328073590,1716835856463,-507.5748738,0.00030136,6]
[328073591,1716835856472,-500.0,0.00030136,6]
[328073592,1716835856481,-500.0,0.00030136,6]
[328073593,1716835856490,-500.0,0.00030136,6]
[328073594,1716835856499,-500.0,0.00030136,6]
[328073595,1716835856508,-500.0,0.00030136,6]
[328073596,1716835856518,-500.0,0.00030136,6]
[328073597,1716835856527,-500.0,0.00030136,6]
[328073598,1716835856536,-500.0,0.00030136,6]
[328073599,1716835856545,-500.0,0.00030136,6]
[328073600,1716835856554,-500.0,0.00030136,6]
[328073601,1716835856563,-500.0,0.00030136,6]
[328073602,1716835856572,-154.481526,0.00030136,7]
[328073603,1716835856580,-500.0,0.00030136,6]
[328073604,1716835856589,-500.0,0.00030136,6]
[328073605,1716835856598,-500.0,0.00030136,6]
[328073606,1716835856607,-500.0,0.00030136,6]
[328073607,1716835856617,-500.0,0.00030136,6]
[328073608,1716835856626,-500.0,0.00030136,6]
[328073609,1716835856635,-500.0,0.00030136,6]
[328073610,1716835856643,-500.0,0.00030136,6]
[328073611,1716835856652,-500.0,0.00030136,6]
[328073612,1716835856661,-500.0,0.00030136,6]
[328073613,1716835856670,-500.0,0.00030136,6]
[328073614,1716835856679,-1385.08,0.00030136,6]
[328073615,1716835856688,-500.0,0.00030136,6]
[328073616,1716835856698,-500.0,0.00030136,6]
[328073617,1716835856707,-500.0,0.00030136,6]
[328073618,1716835856716,-500.0,0.00030136,6]
[328073619,1716835856725,-1385.08,0.00030136,6]
[328073620,1716835856735,-1385.08,0.00030136,6]
[328073621,1716835856743,-500.0,0.00030136,6]
[328073622,1716835856752,-500.0,0.00030136,6]
[328073623,1716835856762,-500.0,0.00030136,6]
[328073624,1716835856771,-500.0,0.00030136,6]
[328073625,1716835856781,-500.0,0.00030136,6]
[328073626,1716835856790,-500.0,0.00030136,6]
[328073627,1716835856799,-500.0,0.00030136,6]
[328073628,1716835856808,-500.0,0.00030136,6]
[328073629,1716835856817,-500.0,0.00030136,6]
[328073630,1716835856826,-500.0,0.00030136,6]
[328073631,1716835856835,-500.0,0.00030136,6]
[328073632,1716835856844,-207.19,0.00030136,6]
[328073633,1716835856853,-500.0,0.00030136,6]
[328073634,1716835856862,-500.0,0.00030136,6]
[328073635,1716835856871,-500.0,0.00030136,6]
[328073636,1716835856881,-500.0,0.00030136,6]
[328073637,1716835856890,-500.0,0.00030136,6]
[328073638,1716835856899,-500.0,0.00030136,6]
[328073639,1716835856908,-500.0,0.00030136,6]
[328073640,1716835856918,-500.0,0.00030136,6]
[328073641,1716835856927,-500.0,0.00030136,6]
[328073642,1716835856936,-614.82,0.00030136,6]
[328073643,1716835856945,-614.82,0.00030136,6]
[328073644,1716835856959,-614.82,0.00030136,6]
[328073645,1716835856968,-614.82,0.00030136,6]
[328073646,1716835856977,-500.0,0.00030136,6]
[328073647,1716835856987,-614.82,0.00030136,6]
[328073648,1716835856996,-500.0,0.00030136,6]
[328073649,1716835857005,-653.94,0.00030136,6]
[328073650,1716835857014,-614.82,0.00030136,6]
[328073651,1716835857023,-653.94,0.00030136,6]
[328073652,1716835857032,-520.55524034,0.00030136,6]
[328073653,1716835857042,-653.94,0.00030136,6]
[328073654,1716835857051,-653.94,0.00030136,6]
[328073655,1716835857059,-653.94,0.00030136,6]
[328073656,1716835857071,-878.64,0.00030136,6]
[328073657,1716835857080,-653.94,0.00030136,6]
[328073658,1716835857092,-878.64,0.00030136,6]
[328073659,1716835857101,-878.64,0.00030136,6]
[328073660,1716835857111,-500.0,0.00030136,6]
[328073661,1716835857121,-500.0,0.00030136,6]
[328073662,1716835857130,-500.0,0.00030136,6]
[328073663,1716835857139,-500.0,0.00030136,6]
[328073664,1716835857149,-500.0,0.00030136,6]
[328073665,1716835857159,-500.0,0.00030136,6]
[328073666,1716835857168,-500.0,0.00030136,6]
[328073667,1716835857178,-500.0,0.00030136,6]
[328073668,1716835857187,-500.0,0.00030136,6]
[328073669,1716835857195,-843.45,0.00030136,6]
[328073670,1716835857205,-500.0,0.00030136,6]
[328073671,1716835857214,-500.0,0.00030136,6]
[328073672,1716835857224,-843.45,0.00030136,6]
[328073673,1716835857233,-411.34929263,0.00030136,6]
[328073674,1716835857242,-843.45,0.00030136,6]
[328073675,1716835857251,-444.21344635,0.00030136,6]
[328073676,1716835915482,247.18,0.00028608,120]
[328073677,1716836327429,161.12,0.00013973,2]
[328073678,1716836342488,-155.0,0.00017253,2]
[328073679,1716836342510,-1145.0,0.00017254,2]
[328073680,1716836366224,-150.0,0.00017252,2]
[328073707,1716836939643,157.65,0.00013973,2]
[328073710,1716837032125,-1240.78981057,0.00017241,2]
[328073711,1716837032137,-849.90049617,0.00017241,2]
[328073712,1716837032146,-648.0,0.00017242,2]
[328073713,1716837032155,-803.0,0.00017243,2]
[328073714,1716837032165,-150.0,0.00017999,2]
[328073715,1716837032173,-2132.50750441,0.00018,2]
[328073716,1716837032183,-329.53898838,0.00018984,2]
[328073717,1716837032192,-893.11791104,0.00018985,2]
[328073718,1716837032203,-3374.45237058,0.00018985,2]
[328073719,1716837032214,-565.32334577,0.00018985,2]
[328073720,1716837032227,-3141.01637261,0.00018985,2]
[328073721,1716837032236,-10419.56,0.00018985,2]
[328073722,1716837032245,-499.99,0.00018985,2]
[328073723,1716837032254,-299.99,0.00019452,7]
[328073724,1716837032264,-210.0,0.00019799,2]
[328073725,1716837032273,-3583.0,0.000204,3]
[328073726,1716837032283,-762.0,0.000204,3]
[328073727,1716837032292,-256.19,0.0002083,2]
[328073728,1716837032300,-500.0,0.00020959,2]
[328073729,1716837032310,-1335.21,0.00021037,2]
[328073730,1716837032319,-509.44,0.0002105,2]
[328073731,1716837032329,-226.08,0.00021733,2]
[328073733,1716837032339,-2769.27,0.00021763,2]
[328073734,1716837032348,-293.0,0.00021779,2]
[328073735,1716837032357,-170.25,0.00021918,2]
[328073736,1716837032366,-2997.38,0.00022434,2]
[328073737,1716837032375,-1355.19,0.00022521,2]
[328073738,1716837032385,-325.91,0.00022522,2]
[328073739,1716837032394,-925.11,0.00022588,2]
[328073740,1716837032404,-250.0,0.00022588,2]
[328073741,1716837032413,-1043.57255206,0.00022602,2]
[328073742,1716837032422,-112294.69431265,0.00022604,2]
[328073743,1716837032431,-5980.12935469,0.00022614,2]
[328073744,1716837032446,-7559.40709401,0.00022614,2]
[328073745,1716837032457,-33413.7835513,0.00022614,2]
[328073746,1716837032466,-200.0,0.00022614,2]
[328073747,1716837032478,-322.89,0.00022618,2]
[328073748,1716837032488,-250.0,0.00022669,2]
[328073749,1716837032497,-1091.01,0.00022715,2]
[328073750,1716837032506,-215.38,0.00022716,2]
[328073751,1716837032516,-118.74940366,0.0002275,2]
[328073752,1716837032528,-191.65059634,0.0002275,2]
[328073753,1716837032538,-162.79597508,0.00022764,2]
[328073754,1716837032550,-355.58402492,0.00022764,2]
[328073755,1716837032559,-11276.04,0.00022877,2]
[328073756,1716837032568,-403.66394371,0.00022892,2]
[328073757,1716837032577,-25292.25,0.00022893,2]
[328073759,1716837032587,-12312.72,0.00022909,2]
[328073761,1716837032596,-2057.2,0.0002294,2]
[328073762,1716837032605,-256.19,0.00023094,2]
[328073763,1716837032614,-2248.0,0.00023101,2]
[328073764,1716837032623,-18076.5272912,0.00023101,2]
[328073765,1716837032634,-5855.66818691,0.00023101,2]
[328073766,1716837032735,-4801.53009967,0.00023101,2]
[328073767,1716837032747,-1361.45276237,0.00023101,2]
[328073768,1716837032758,-22.67365985,0.00023101,2]
[328073769,1716837032767,-652.79638649,0.00023115,2]
[328073770,1716837032779,-3819.75361351,0.00023115,2]
[328073771,1716837032788,-638.71,0.0002319,2]
[328073772,1716837032797,-638.71,0.00023254,2]
[328073773,1716837032806,-638.71,0.00023318,2]
[328073774,1716837032816,-638.71,0.00023381,2]
[328073775,1716837032825,-638.71,0.00023445,2]
[328073776,1716837032835,-638.71,0.00023508,2]
[328073777,1716837032844,-638.71,0.00023572,2]
[328073778,1716837032854,-207.0,0.0002359,2]
[328073779,1716837032863,-638.71,0.00023635,2]
[328073780,1716837032872,-638.71,0.00023699,2]
[328073781,1716837032881,-638.71,0.00023763,2]
[328073782,1716837032891,-638.71,0.00023826,2]
[328073783,1716837032900,-638.71,0.0002389,2]
[328073784,1716837032909,-638.71,0.00023953,2]
[328073785,1716837032918,-151.22441975,0.00023981,2]
[328073786,1716837032927,-638.71,0.00024017,2]
[328073787,1716837032936,-638.71,0.00024081,2]
[328073788,1716837032945,-207.0,0.0002414,2]
[328073789,1716837032954,-638.71,0.00024144,2]
[328073790,1716837032963,-638.71,0.00024208,2]
[328073791,1716837032974,-638.71,0.00024271,2]
[328073792,1716837032983,-638.71,0.00024335,2]
[328073793,1716837032991,-638.71,0.00024399,2]
[328073794,1716837033000,-178.31,0.00024519,2]
[328073795,1716837033009,-207.0,0.0002468,2]
[328073796,1716837033019,-1322.22257776,0.00024798,2]
[328073797,1716837033028,-40679.32794848,0.00024898,2]
[328073798,1716837033037,-40679.32794845,0.00024898,2]
[328073799,1716837033046,-156.42584305,0.00024903,2]
[328073800,1716837033056,-23758.47992476,0.00024906,2]
[328073801,1716837033067,-621.77146932,0.00024906,2]
[328073802,1716837033078,-883.97785601,0.00024906,2]
[328073803,1716837033089,-450.25,0.00024906,2]
[328073804,1716837033101,-538.35607125,0.00024906,2]
[328073807,1716837041026,-14426.49262711,0.00024906,2]
[328073808,1716837041036,-326.70070233,0.00025074,2]
[328073809,1716837041046,-2997.38,0.00025174,2]
[328073810,1716837041056,-207.0,0.0002523,2]
[328073811,1716837041066,-256.19,0.00025358,2]
[328073812,1716837041077,-165.51724431,0.00025367,2]
[328073813,1716837041087,-200.67530649,0.00025421,2]
[328073814,1716837041096,-310.4,0.00025594,2]
[328073815,1716837041107,-153.23287074,0.00025617,2]
[328073816,1716837041116,-921.28,0.00025629,2]
[328073817,1716837041126,-207.0,0.0002578,2]
[328073818,1716837041136,-156.28541931,0.0002601,2]
[328073819,1716837041146,-40679.32794845,0.00026102,2]
[328073820,1716837041155,-1322.22257773,0.00026108,2]
[328073821,1716837041164,-3634.45,0.000262,2]
[328073822,1716837041174,-150.0,0.00026203,2]
[328073823,1716837041184,-150.0,0.00026254,2]
[328073824,1716837041194,-207.0,0.0002632,2]
[328073825,1716837041203,-150.0,0.0002648,2]
[328073826,1716837041212,-150.0,0.00026583,2]
[328073827,1716837041222,-150.0,0.00026623,2]
[328073828,1716837041235,-326.58,0.00026734,2]
[328073829,1716837041245,-1000.0,0.00026849,2]
[328073830,1716837041254,-207.0,0.0002687,2]
[328073831,1716837041264,-150.0,0.00026884,2]
[328073833,1716837041274,-150.0,0.00026936,2]
[328073835,1716837041285,-150.0,0.00026952,2]
[328073837,1716837041294,-153.23287074,0.00027045,2]
[328073839,1716837041304,-331.65549182,0.00027121,2]
[328073841,1716837041314,-152.96549235,0.00027221,2]
[328073843,1716837041323,-40679.32794845,0.00027298,2]
[328073845,1716837041333,-150.0,0.00027382,2]
[328073847,1716837041342,-1322.22257773,0.00027417,2]
[328073849,1716837041351,-207.0,0.0002742,2]
[328073851,1716837041361,-150.0,0.00027518,2]
[328073853,1716837041371,-150.0,0.00027587,2]
[328073855,1716837041380,-256.19,0.00027622,2]
[328073857,1716837041390,-150.0,0.00027634,2]
[328073859,1716837041399,-150.0,0.00027842,2]
[328073861,1716837041409,-2997.38,0.00027914,2]
[328073863,1716837041418,-207.0,0.0002796,2]
[328073865,1716837041430,-150.0,0.00027964,2]
[328073867,1716837041441,-150.0,0.00027988,2]
[328073869,1716837041451,-150.0,0.00028065,2]
[328073871,1716837041460,-1000.0,0.000281,2]
[328073873,1716837041470,-150.0,0.00028136,2]
[328073875,1716837041483,-155.08702744,0.00028187,2]
[328073877,1716837041493,-150.0,0.00028277,2]
[328073879,1716837041503,-150.0,0.00028312,2]
[328073881,1716837041512,-150.0,0.00028348,2]
[328073883,1716837041523,-150.0,0.00028392,2]
[328073885,1716837041534,-310.4,0.00028438,2]
[328073887,1716837041544,-150.0,0.00028439,2]
[328073889,1716837041553,-150.0,0.00028463,2]
[328073891,1716837041563,-40679.32794845,0.00028494,2]
[328073893,1716837041572,-207.0,0.0002851,2]
[328073894,1716837041582,-150.0,0.00028519,2]
[328073896,1716837041591,-445.84257136,0.00028608,2]
[328073899,1716837041601,-257.35260169,0.00028608,2]
[328073901,1716837041611,-151.22441975,0.0002863,2]
[328073903,1716837041620,-150.0,0.00028672,2]
[328073905,1716837041630,-150.0,0.00028718,2]
[328073907,1716837041640,-1322.22257773,0.00028727,2]
[328073908,1716837041649,-150.0,0.00028734,2]
[328073911,1716837041659,-150.0,0.00028735,2]
[328073913,1716837041668,-150.0,0.00028795,2]
[328073914,1716837041678,-150.0,0.0002882,2]
[328073916,1716837041687,-921.28,0.00028832,2]
[328073918,1716837041696,-150.0,0.00028845,2]
[328073920,1716837041706,-150.0,0.00028972,2]
[328073922,1716837041715,-150.0,0.00029034,2]
[328073924,1716837041729,-207.0,0.0002905,2]
[328073926,1716837041738,-150.0,0.00029079,2]
[328073928,1716837041748,-150.0,0.00029092,2]
[328073931,1716837041757,-176.51774092,0.00029228,2]
[328073933,1716837041766,-150.0,0.0002925,2]
[328073935,1716837041775,-585.48877033,0.00029272,2]
[328073937,1716837041784,-448.20939551,0.00029318,2]
[328073939,1716837041793,-151.1,0.00029318,2]
[328073941,1716837041802,-894.02098576,0.00029328,2]
[328073943,1716837041814,-6723.4,0.00029328,2]
[328073945,1716837041825,-2371.12989906,0.00029328,2]
[328073947,1716837041836,-1000.33219982,0.00029328,2]
[328073950,1716837041847,-1004.90240415,0.00029328,2]
[328073952,1716837041858,-346.1778126,0.00029328,2]
[328073954,1716837041869,-798.0842665,0.00029328,2]
[328073956,1716837041880,-37090.00000011,0.00029328,2]
[328073958,1716837041891,-13403.79999999,0.00029328,2]
[328073961,1716837041902,-32967.8,0.00029328,2]
[328073963,1716837041914,-308.66866659,0.00029328,2]
[328073974,1716837042012,-3389.96530916,0.00029328,2]
[328073977,1716837042023,-922.39733341,0.00029328,2]
[328073979,1716837042035,-714.662132,0.00029328,2]
[328073981,1716837042046,-350.32488971,0.00029328,2]
[328073983,1716837042058,-500.0,0.00029328,2]
[328073985,1716837042069,-2267.29413853,0.00029328,2]
[328073988,1716837042080,-3920.64999999,0.00029328,2]
[328073990,1716837042093,-4343.464663,0.00029328,2]
[328073992,1716837042104,-4292.0362155,0.00029328,2]
[328073994,1716837042116,-6706.7,0.00029328,2]
[328073997,1716837042128,-1941.56591577,0.00029328,2]
[328074002,1716837042171,-1502.25253907,0.00029328,2]
[328074024,1716837042363,-1006.005,0.00029328,2]
[328074026,1716837042376,-3268.0669238,0.00029328,2]
[328074029,1716837042387,-732.00846113,0.00029328,2]
[328074031,1716837042399,-1382.19034372,0.00029328,2]
[328074033,1716837042410,-15039.0174597,0.00029328,2]
[328074035,1716837042421,-355.64603962,0.00029328,2]
[328074036,1716837042436,-120373.42149664,0.00029328,2]
[328074037,1716837042445,-2646.98,0.00029329,2]
[328074038,1716837042454,-2646.98,0.00029336,2]
[328074039,1716837042467,-2646.98,0.00029344,2]
[328074041,1716837042481,-2646.98,0.00029352,2]
[328074043,1716837042490,-2646.98,0.0002936,2]
[328074045,1716837042499,-2646.98,0.00029367,2]
[328074046,1716837042509,-2646.98,0.00029375,2]
[328074047,1716837042519,-2646.98,0.00029383,2]
[328074048,1716837042528,-2646.98,0.0002939,2]
[328074049,1716837042539,-2646.98,0.00029398,2]
[328074050,1716837042550,-2646.98,0.00029406,2]
[328074051,1716837042560,-2646.98,0.00029414,2]
[328074052,1716837042569,-2646.98,0.00029421,2]
[328074053,1716837042579,-2646.98,0.00029429,2]
[328074054,1716837042588,-2646.98,0.00029437,2]
[328074055,1716837042598,-2646.98,0.00029445,2]
[328074056,1716837042607,-2646.98,0.00029452,2]
[328074057,1716837042617,-2646.98,0.0002946,2]
[328074058,1716837042626,-2646.98,0.00029468,2]
[328074059,1716837042636,-2646.98,0.00029475,2]
[328074060,1716837042645,-891.8,0.00029515,2]
[328074061,1716837042655,-881.27,0.00029515,2]
[328074062,1716837042664,-150.0,0.00029526,2]
[328074063,1716837042673,-150.0,0.0002956,2]
[328074064,1716837042683,-207.0,0.000296,2]
[328074065,1716837042692,-150.0,0.00029612,2]
[328074066,1716837042701,-176.5177409,0.00029632,2]
[328074067,1716837042711,-150.0,0.00029677,2]
[328074068,1716837042720,-150.0,0.00029687,2]
[328074069,1716837042732,-40679.32794845,0.0002969,2]
[328074070,1716837042742,-1000.0,0.0002979,4]
[328074071,1716837042751,-2924.77453,0.0002983,2]
[328074072,1716837042760,-150.0,0.00029837,2]
[328074073,1716837042769,-256.19,0.00029886,2]
[328074074,1716837042778,-150.0,0.0002999,2]
[328074075,1716837042788,-500.0,0.00029999,2]
[328074076,1716837042797,-296.50519264,0.00029999,2]
[328074077,1716837042807,-2235.07486009,0.0003,3]
[328074078,1716837042816,-2534.11417382,0.0003,30]
[328074079,1716837042826,-1000.0,0.0003,3]
[328074080,1716837042836,-1000.0,0.00030036,2]
[328074081,1716837042845,-10116.92714054,0.00030036,2]
[328074082,1716837042856,-422.15689248,0.00030036,2]
[328074083,1716837042865,-1322.22257773,0.00030036,2]
[328074084,1716837042875,-176.5177409,0.00030036,2]
[328074085,1716837042885,-150.0,0.00030042,2]
[328074086,1716837042894,-150.0,0.00030062,2]
[328074087,1716837042903,-238322.35395121,0.00030068,11]
[328074088,1716837042913,-5765.0,0.00030069,2]
[328074089,1716837042923,-289.0,0.00030069,2]
[328074090,1716837042933,-4100.085,0.00030069,2]
[328074091,1716837042942,-37936.0,0.00030069,2]
[328074092,1716837042952,-636.162,0.00030069,2]
[328074093,1716837042962,-585.48877033,0.00030074,10]
[328074094,1716837042972,-150.0,0.00030095,2]
[328074095,1716837042985,-151.1,0.00030126,2]
[328074096,1716837042994,-448.20939551,0.00030126,2]
[328074097,1716837043003,-151.1,0.00030126,2]
[328074098,1716837043013,-795.48059306,0.00030134,4]
[328074099,1716837043022,-204.9066759,0.00030134,4]
[328074100,1716837043032,-279.01846308,0.00030134,4]
[328074101,1716837043042,-257.07684942,0.00030135,4]
[328074102,1716837043051,-150.0,0.00030135,7]
[328074103,1716837043061,-501.5707417,0.00030136,6]
[328074104,1716837043071,-520.25916032,0.00030136,6]
[328074105,1716837043081,-501.35270242,0.00030136,6]
[328074106,1716837043091,-521.38936228,0.00030136,6]
[328074107,1716837043101,-503.15822669,0.00030136,6]
[328074108,1716837043111,-636.75445181,0.00030136,6]
[328074109,1716837043121,-500.0,0.00030136,6]
[328074110,1716837043130,-500.0,0.00030136,6]
[328074111,1716837043139,-507.98026869,0.00030136,6]
[328074112,1716837043150,-506.64747862,0.00030136,6]
[328074113,1716837043159,-2000.0,0.00030136,2]
[328074114,1716837043169,-200.0,0.00030136,2]
[328074116,1716837043179,-500.0,0.00030136,6]
[328074117,1716837043188,-253.59,0.00030136,6]
[328074118,1716837043197,-500.0,0.00030136,6]
[328074119,1716837043207,-500.0,0.00030136,6]
[328074121,1716837043217,-491.61231955,0.00030136,6]
[328074124,1716837043227,-151.830362,0.00030136,7]
[328074126,1716837043237,-500.0,0.00030136,6]
[328074127,1716837043247,-350.7,0.00030136,6]
[328074128,1716837043256,-500.0,0.00030136,6]
[328074129,1716837043266,-500.0,0.00030136,6]
[328074130,1716837043277,-168.64875432,0.00030136,6]
[328074131,1716837043286,-500.0,0.00030136,6]
[328074132,1716837043296,-252.48789717,0.00030136,6]
[328074133,1716837043305,-500.0,0.00030136,6]
[328074134,1716837043315,-582.24,0.00030136,6]
[328074135,1716837043325,-500.0,0.00030136,6]
[328074136,1716837043334,-500.0,0.00030136,6]
[328074137,1716837043343,-500.0,0.00030136,6]
[328074138,1716837043353,-500.0,0.00030136,6]
[328074139,1716837043363,-500.0,0.00030136,6]
[328074140,1716837043372,-500.0,0.00030136,6]
[328074141,1716837043382,-500.0,0.00030136,6]
[328074142,1716837043392,-448.82,0.00030136,6]
[328074143,1716837043401,-500.0,0.00030136,6]
[328074144,1716837043410,-500.0,0.00030136,6]
[328074145,1716837043420,-500.0,0.00030136,6]
[328074146,1716837043431,-500.0,0.00030136,6]
[328074147,1716837043442,-508.9699818,0.00030136,6]
[328074148,1716837043452,-500.0,0.00030136,6]
[328074149,1716837043462,-500.0,0.00030136,6]
[328074150,1716837043471,-500.0,0.00030136,6]
[328074151,1716837043484,-500.0,0.00030136,6]
[328074152,1716837043493,-500.0,0.00030136,6]
[328074153,1716837043501,-500.0,0.00030136,6]
[328074154,1716837043513,-500.0,0.00030136,6]
[328074155,1716837043522,-500.0,0.00030136,6]
[328074156,1716837043532,-500.0,0.00030136,6]
[328074157,1716837043541,-506.05316256,0.00030136,6]
[328074158,1716837043551,-500.0,0.00030136,6]
[328074159,1716837043560,-500.0,0.00030136,6]
[328074160,1716837043570,-500.0,0.00030136,6]
[328074161,1716837043579,-500.0,0.00030136,6]
[328074162,1716837043589,-500.0,0.00030136,6]
[328074163,1716837043599,-551.4,0.00030136,6]
[328074164,1716837043609,-500.0,0.00030136,6]
[328074165,1716837043619,-500.0,0.00030136,6]
[328074166,1716837043628,-500.0,0.00030136,6]
[328074167,1716837043638,-500.0,0.00030136,6]
[328074168,1716837043648,-500.0,0.00030136,6]
[328074169,1716837043657,-500.0,0.00030136,6]
[328074170,1716837043666,-500.0,0.00030136,6]
[328074171,1716837043676,-500.0,0.00030136,6]
[328074172,1716837043686,-500.0,0.00030136,6]
[328074173,1716837043697,-500.0,0.00030136,6]
[328074174,1716837043707,-500.0,0.00030136,6]
[328074175,1716837043716,-500.0,0.00030136,6]
[328074176,1716837043727,-500.0,0.00030136,6]
[328074177,1716837043736,-500.0,0.00030136,6]
[328074178,1716837043746,-500.0,0.00030136,6]
[328074179,1716837043757,-500.0,0.00030136,6]
[328074180,1716837043767,-500.0,0.00030136,6]
[328074181,1716837043776,-500.0,0.00030136,6]
[328074182,1716837043786,-500.0,0.00030136,6]
[328074183,1716837043795,-500.0,0.00030136,6]